Workbook

Sheet Test1
A1: Название | B1: Ширина | C1: Высота | D1: Отход
A2: Контейнер | B2: 47 | C2: 31 | D2: =(B2*C2)-SUMPRODUCT(B5:B24,C5:C24,D5:D24) -> 8
D3: =1-SUMPRODUCT(B5:B24,C5:C24,D5:D24)/(B2*C2) -> 0.005490734386
A4: Название | B4: Ширина | C4: Высота | D4: Кол-во
A5: Деталь 1 | B5: 3 | C5: 17 | D5: 16
A6: Деталь 2 | B6: 5 | C6: 13 | D6: 5
A7: Деталь 3 | B7: 7 | C7: 11 | D7: 4
D8: 0
D9: 0
D10: 0
D11: 0
D12: 0
D13: 0
D14: 0
D15: 0
D16: 0
D17: 0
D18: 0
D19: 0
D20: 0
D21: 0
D22: 0
D23: 0
D24: 0
A26: Масштаб | B26: 10

Sheet Test2
A1: Название | B1: Ширина | C1: Высота | D1: Отход
A2: Контейнер | B2: 79 | C2: 57 | D2: =(B2*C2)-SUMPRODUCT(B5:B24,C5:C24,D5:D24) -> 0
D3: =1-SUMPRODUCT(B5:B24,C5:C24,D5:D24)/(B2*C2) -> 0
A4: Название | B4: Ширина | C4: Высота | D4: Кол-во
A5: Деталь 1 | B5: 3 | C5: 17 | D5: 20
A6: Деталь 2 | B6: 5 | C6: 13 | D6: 37
A7: Деталь 3 | B7: 7 | C7: 11 | D7: 14
D8: 0
D9: 0
D10: 0
D11: 0
D12: 0
D13: 0
D14: 0
D15: 0
D16: 0
D17: 0
D18: 0
D19: 0
D20: 0
D21: 0
D22: 0
D23: 0
D24: 0
A26: Масштаб | B26: 7.5

Sheet Test3
A1: Название | B1: Ширина | C1: Высота | D1: Отход
A2: Контейнер | B2: 234 | C2: 345 | D2: =(B2*C2)-SUMPRODUCT(B5:B24,C5:C24,D5:D24) -> 0
D3: =1-SUMPRODUCT(B5:B24,C5:C24,D5:D24)/(B2*C2) -> 0
A4: Название | B4: Ширина | C4: Высота | D4: Кол-во
A5: Деталь 1 | B5: 40 | C5: 80 | D5: 0
A6: Деталь 2 | B6: 41 | C6: 71 | D6: 8
A7: Деталь 3 | B7: 37 | C7: 70 | D7: 2
A8: Деталь 4 | B8: 39 | C8: 80 | D8: 7
A9: Деталь 5 | B9: 50 | C9: 80 | D9: 0
A10: Деталь 6 | B10: 40 | C10: 70 | D10: 1
A11: Деталь 7 | B11: 42 | C11: 78 | D11: 6
A12: Деталь 8 | B12: 39 | C12: 84 | D12: 1
A13: Деталь 9 | B13: 31 | C13: 66 | D13: 0
A14: Деталь 10 | B14: 35 | C14: 67 | D14: 2
D15: 0
D16: 0
D17: 0
D18: 0
D19: 0
D20: 0
D21: 0
D22: 0
D23: 0
D24: 0
A26: Масштаб | B26: 1

Sheet Test4
A1: Название | B1: Ширина | C1: Высота | D1: Отход
A2: Контейнер | B2: 234 | C2: 345 | D2: =(B2*C2)-SUMPRODUCT(B5:B24,C5:C24,D5:D24) -> 522
D3: =1-SUMPRODUCT(B5:B24,C5:C24,D5:D24)/(B2*C2) -> 0.00646599777
A4: Название | B4: Ширина | C4: Высота | D4: Кол-во
A5: Деталь 1 | B5: 47 | C5: 52 | D5: 6
A6: Деталь 2 | B6: 33 | C6: 74 | D6: 2
A7: Деталь 3 | B7: 72 | C7: 32 | D7: 8
A8: Деталь 4 | B8: 34 | C8: 38 | D8: 9
A9: Деталь 5 | B9: 50 | C9: 68 | D9: 9
D10: 0
D11: 0
D12: 0
D13: 0
D14: 0
D15: 0
D16: 0
D17: 0
D18: 0
D19: 0
D20: 0
D21: 0
D22: 0
D23: 0
D24: 0
A26: Масштаб | B26: 1

Sheet Test5
A1: Название | B1: Ширина | C1: Высота | D1: Отход
A2: Контейнер | B2: 321 | C2: 210 | D2: =(B2*C2)-SUMPRODUCT(B5:B24,C5:C24,D5:D24) -> 498
D3: =1-SUMPRODUCT(B5:B24,C5:C24,D5:D24)/(B2*C2) -> 0.007387627948
A4: Название | B4: Ширина | C4: Высота | D4: Кол-во
A5: Деталь 1 | B5: 47 | C5: 52 | D5: 14
A6: Деталь 2 | B6: 33 | C6: 74 | D6: 2
A7: Деталь 3 | B7: 72 | C7: 32 | D7: 0
A8: Деталь 4 | B8: 34 | C8: 38 | D8: 11
A9: Деталь 5 | B9: 50 | C9: 68 | D9: 4
D10: 0
D11: 0
D12: 0
D13: 0
D14: 0
D15: 0
D16: 0
D17: 0
D18: 0
D19: 0
D20: 0
D21: 0
D22: 0
D23: 0
D24: 0
A26: Масштаб | B26: 1

Sheet Раскрой (1)
A1: Название | B1: Ширина | C1: Высота | D1: Отход
A2: Контейнер | B2: 150 | C2: 150 | D2: =(B2*C2)-SUMPRODUCT(B5:B24,C5:C24,D5:D24) -> 86
D3: =1-SUMPRODUCT(B5:B24,C5:C24,D5:D24)/(B2*C2) -> 0.003822222222
A4: Название | B4: Ширина | C4: Высота | D4: Кол-во
A5: Деталь 1 | B5: 11 | C5: 37 | D5: 12
A6: Деталь 2 | B6: 13 | C6: 31 | D6: 15
A7: Деталь 3 | B7: 17 | C7: 29 | D7: 10
A8: Деталь 4 | B8: 19 | C8: 23 | D8: 15
D9: 0
D10: 0
D11: 0
D12: 0
D13: 0
D14: 0
D15: 0
D16: 0
D17: 0
D18: 0
D19: 0
D20: 0
D21: 0
D22: 0
D23: 0
D24: 0
A26: Масштаб | B26: 3

Sheet Раскрой (2)
A1: Название | B1: Ширина | C1: Высота | D1: Отход
A2: Контейнер | B2: 151 | C2: 149 | D2: =(B2*C2)-SUMPRODUCT(B5:B24,C5:C24,D5:D24) -> 63
D3: =1-SUMPRODUCT(B5:B24,C5:C24,D5:D24)/(B2*C2) -> 0.00280012445
A4: Название | B4: Ширина | C4: Высота | D4: Кол-во
A5: Деталь 1 | B5: 11 | C5: 37 | D5: 2
A6: Деталь 2 | B6: 13 | C6: 31 | D6: 39
A7: Деталь 3 | B7: 17 | C7: 29 | D7: 4
A8: Деталь 4 | B8: 19 | C8: 23 | D8: 9
D9: 0
D10: 0
D11: 0
D12: 0
D13: 0
D14: 0
D15: 0
D16: 0
D17: 0
D18: 0
D19: 0
D20: 0
D21: 0
D22: 0
D23: 0
D24: 0
A26: Масштаб | B26: 3

Sheet Раскрой (3)
A1: Название | B1: Ширина | C1: Высота | D1: Отход
A2: Контейнер | B2: 152 | C2: 148 | D2: =(B2*C2)-SUMPRODUCT(B5:B24,C5:C24,D5:D24) -> 45
D3: =1-SUMPRODUCT(B5:B24,C5:C24,D5:D24)/(B2*C2) -> 0.002000355619
A4: Название | B4: Ширина | C4: Высота | D4: Кол-во
A5: Деталь 1 | B5: 11 | C5: 37 | D5: 12
A6: Деталь 2 | B6: 13 | C6: 31 | D6: 5
A7: Деталь 3 | B7: 17 | C7: 29 | D7: 28
A8: Деталь 4 | B8: 19 | C8: 23 | D8: 4
D9: 0
D10: 0
D11: 0
D12: 0
D13: 0
D14: 0
D15: 0
D16: 0
D17: 0
D18: 0
D19: 0
D20: 0
D21: 0
D22: 0
D23: 0
D24: 0
A26: Масштаб | B26: 3

Sheet Раскрой (4)
A1: Название | B1: Ширина | C1: Высота | D1: Отход
A2: Контейнер | B2: 154 | C2: 146 | D2: =(B2*C2)-SUMPRODUCT(B5:B24,C5:C24,D5:D24) -> 86
D3: =1-SUMPRODUCT(B5:B24,C5:C24,D5:D24)/(B2*C2) -> 0.003824942181
A4: Название | B4: Ширина | C4: Высота | D4: Кол-во
A5: Деталь 1 | B5: 11 | C5: 37 | D5: 2
A6: Деталь 2 | B6: 13 | C6: 31 | D6: 21
A7: Деталь 3 | B7: 17 | C7: 29 | D7: 8
A8: Деталь 4 | B8: 19 | C8: 23 | D8: 21
D9: 0
D10: 0
D11: 0
D12: 0
D13: 0
D14: 0
D15: 0
D16: 0
D17: 0
D18: 0
D19: 0
D20: 0
D21: 0
D22: 0
D23: 0
D24: 0
A26: Масштаб | B26: 3

Sheet Раскрой (5)
A1: Название | B1: Ширина | C1: Высота | D1: Отход
A2: Контейнер | B2: 150 | C2: 150 | D2: =(B2*C2)-SUMPRODUCT(B5:B24,C5:C24,D5:D24) -> 78
D3: =1-SUMPRODUCT(B5:B24,C5:C24,D5:D24)/(B2*C2) -> 0.003466666667
A4: Название | B4: Ширина | C4: Высота | D4: Кол-во
A5: Деталь 1 | B5: 11 | C5: 29 | D5: 10
A6: Деталь 2 | B6: 13 | C6: 23 | D6: 60
A7: Деталь 3 | B7: 17 | C7: 19 | D7: 4
D8: 0
D9: 0
D10: 0
D11: 0
D12: 0
D13: 0
D14: 0
D15: 0
D16: 0
D17: 0
D18: 0
D19: 0
D20: 0
D21: 0
D22: 0
D23: 0
D24: 0
A26: Масштаб | B26: 3

Sheet Раскрой (6)
A1: Название | B1: Ширина | C1: Высота | D1: Отход
A2: Контейнер | B2: 151 | C2: 149 | D2: =(B2*C2)-SUMPRODUCT(B5:B24,C5:C24,D5:D24) -> 76
D3: =1-SUMPRODUCT(B5:B24,C5:C24,D5:D24)/(B2*C2) -> 0.003377927908
A4: Название | B4: Ширина | C4: Высота | D4: Кол-во
A5: Деталь 1 | B5: 11 | C5: 29 | D5: 7
A6: Деталь 2 | B6: 13 | C6: 23 | D6: 47
A7: Деталь 3 | B7: 17 | C7: 19 | D7: 19
D8: 0
D9: 0
D10: 0
D11: 0
D12: 0
D13: 0
D14: 0
D15: 0
D16: 0
D17: 0
D18: 0
D19: 0
D20: 0
D21: 0
D22: 0
D23: 0
D24: 0
A26: Масштаб | B26: 3

Sheet Раскрой (7)
A1: Название | B1: Ширина | C1: Высота | D1: Отход
A2: Контейнер | B2: 154 | C2: 146 | D2: =(B2*C2)-SUMPRODUCT(B5:B24,C5:C24,D5:D24) -> 36
D3: =1-SUMPRODUCT(B5:B24,C5:C24,D5:D24)/(B2*C2) -> 0.001601138587
A4: Название | B4: Ширина | C4: Высота | D4: Кол-во
A5: Деталь 1 | B5: 11 | C5: 29 | D5: 28
A6: Деталь 2 | B6: 13 | C6: 23 | D6: 29
A7: Деталь 3 | B7: 17 | C7: 19 | D7: 15
D8: 0
D9: 0
D10: 0
D11: 0
D12: 0
D13: 0
D14: 0
D15: 0
D16: 0
D17: 0
D18: 0
D19: 0
D20: 0
D21: 0
D22: 0
D23: 0
D24: 0
A26: Масштаб | B26: 3
